bitfinex/quotes_SOLUSD_20240822
["timestamp","ask_amount","ask_price","bid_price","bid_amount"]
[1724324464574,7.22564901,144.21,144.18,20.0]
[1724324464800,32.7829,144.24,144.18,20.0]
[1724324465085,32.7829,144.24,144.2,20.0]
[1724324467080,25.85,144.22,144.18,20.0]
[1724324468055,25.85,144.2,144.16,20.0]
[1724324468573,32.7839,144.22,144.18,20.0]
[1724324468777,32.7839,144.22,144.16,20.0]
[1724324468976,6.9344,144.21,144.16,20.0]
[1724324469184,32.785,144.2,144.16,20.0]
[1724324469801,25.85,144.2,144.16,20.0]
[1724324470498,48.4834,144.2,144.14,20.0]
[1724324471575,41.5482,144.2,144.16,20.0]
[1724324472701,25.85,144.18,144.14,20.0]
[1724324474108,25.85,144.16,144.12,20.0]
[1724324475999,32.7867,144.16,144.1,20.0]
[1724324476201,25.85,144.14,144.1,20.0]
[1724324476388,6.9367,144.16,144.1,20.0]
[1724324476580,25.85,144.14,144.1,20.0]
[1724324478700,25.85,144.13,144.1,20.0]
[1724324479303,41.1996,144.15,144.1,20.0]
[1724324480887,25.85,144.11,144.1,20.0]
[1724324481087,25.85,144.11,144.06,20.0]
[1724324481609,6.0859,144.14,144.09,20.0]
[1724324481610,25.85,144.13,144.09,20.0]
[1724324485000,25.85,144.13,144.11,20.0]
[1724324485309,6.9377,144.14,144.09,20.0]
[1724324485783,48.41646968,144.15,144.09,20.0]
[1724324486111,25.85,144.13,144.09,20.0]
[1724324488701,25.85,144.13,144.07,20.0]
[1724324489706,32.7882,144.13,144.07,20.0]
[1724324490711,10.37,144.12,144.09,20.0]
[1724324491091,10.37,144.12,144.07,20.0]
[1724324492501,10.37,144.1,144.07,20.0]
[1724324493012,10.37,144.08,144.05,20.0]
[1724324493391,26.1046,144.1,144.05,20.0]
[1724324493600,26.1046,144.1,144.02,1.38842842]
[1724324493601,26.1046,144.1,144.07,20.0]
[1724324495600,15.4683,144.14,144.1,20.0]
[1724324496613,10.37,144.12,144.1,20.0]
[1724324496790,10.37,144.12,144.09,20.0]
[1724324497308,25.8383,144.14,144.11,20.0]
[1724324497545,15.4683,144.14,144.11,20.0]
[1724324500998,15.4683,144.14,144.09,20.0]
[1724324500999,10.37,144.13,144.09,20.0]
[1724324501200,10.37,144.13,144.07,20.0]
[1724324503608,10.37,144.11,144.07,20.0]
[1724324504696,15.4683,144.14,144.09,20.0]
[1724324504697,10.37,144.12,144.09,20.0]
[1724324505824,10.37,144.12,144.07,20.0]
[1724324506321,17.5861792,144.12,144.07,20.0]
[1724324506500,10.37,144.1,144.07,20.0]
[1724324508207,10.37,144.1,144.05,20.0]
[1724324510006,10.37,144.08,144.05,20.0]
[1724324510916,15.5457,144.09,144.05,20.0]
[1724324511119,15.5457,144.09,144.07,20.0]
[1724324513100,15.5457,144.09,144.05,20.0]
[1724324513305,15.5457,144.09,144.07,20.0]
[1724324513617,15.5457,144.09,144.05,20.0]
[1724324515945,15.5457,144.09,144.07,20.0]
[1724324516239,7.2161792,144.12,144.09,20.0]
[1724324516411,14.1548792,144.12,144.09,20.0]
[1724324517641,7.2161792,144.12,144.09,20.0]
[1724324518532,14.1548792,144.12,144.07,20.0]
[1724324518833,14.1548792,144.12,144.09,20.0]
[1724324519610,7.2161792,144.12,144.09,20.0]
[1724324520212,25.7982,144.13,144.09,20.0]
[1724324520436,32.7364,144.13,144.09,20.0]
[1724324520843,32.7364,144.13,144.07,20.0]
[1724324521023,6.9387,144.12,144.07,20.0]
[1724324521210,25.7982,144.13,144.07,20.0]
[1724324521211,10.37,144.09,144.07,20.0]
[1724324521636,10.37,144.11,144.07,20.0]
[1724324522023,25.7982,144.13,144.09,20.0]
[1724324523234,32.7364,144.13,144.09,20.0]
[1724324524550,15.4282,144.13,144.09,20.0]
[1724324524926,22.3663,144.13,144.09,20.0]
[1724324525450,6.9387,144.12,144.09,20.0]
[1724324525615,22.3664,144.13,144.07,20.0]
[1724324525834,6.9386,144.12,144.07,20.0]
[1724324526524,32.8586,144.12,144.07,20.0]
[1724324527057,22.3665,144.13,144.09,20.0]
[1724324527241,7.18911301,144.14,144.11,20.0]
[1724324527416,15.2602,144.17,144.11,20.0]
[1724324527615,22.46342427,144.17,144.11,20.0]
[1724324527925,6.9369,144.16,144.11,20.0]
[1724324529039,6.9373,144.15,144.09,20.0]
[1724324530320,6.9379,144.14,144.09,20.0]
[1724324530543,6.9398,144.1,144.05,20.0]
[1724324530753,6.9401,144.09,144.03,20.0]
[1724324531928,32.8601,144.09,144.03,20.0]
[1724324533153,25.92,144.09,144.03,20.0]
[1724324533331,32.8595,144.11,144.05,20.0]
[1724324537931,6.9396,144.1,144.03,20.0]
[1724324538123,32.8602,144.09,144.03,20.0]
[1724324539062,23.1789,144.08,144.03,20.0]
[1724324539424,6.9412,144.07,144.03,20.0]
[1724324539771,32.8612,144.07,144.03,20.0]
[1724324540220,32.8612,144.07,144.01,20.0]
[1724324540625,6.9412,144.07,144.01,20.0]
[1724324542052,6.9423,144.05,144.01,20.0]
[1724324543223,25.92,144.06,143.99,20.0]
[1724324543529,25.92,144.04,143.99,20.0]
[1724324543861,32.8625,144.04,143.99,20.0]
[1724324544352,16.2674,144.03,143.99,20.0]
[1724324545260,23.2105,144.03,143.99,20.0]
[1724324546150,6.9438,144.02,143.96,20.0]
[1724324546357,32.8638,144.02,143.96,20.0]
[1724324546548,32.8638,144.02,143.98,20.0]
[1724324546739,23.2104,144.03,143.98,20.0]
[1724324548351,30.41320873,144.03,143.98,20.0]
[1724324548926,23.47020873,144.03,143.98,20.0]
[1724324549128,30.41320873,144.03,143.98,20.0]
[1724324549428,30.41320873,144.03,143.93,31.9958]
[1724324549429,25.92,144.02,143.96,20.0]
[1724324549644,6.9443,144.01,143.96,20.0]
[1724324550859,32.8635,144.02,143.96,20.0]
[1724324551976,32.8635,144.02,143.98,20.0]
[1724324551977,6.9435,144.02,143.98,20.0]
[1724324552537,6.9435,144.02,143.96,20.0]
[1724324555151,6.9435,144.02,143.98,20.0]
[1724324556741,32.8635,144.02,143.96,20.0]
[1724324557242,6.944,144.01,143.96,20.0]
[1724324558661,14.15016246,144.01,143.96,20.0]
[1724324558968,14.15016246,144.01,143.94,20.0]
[1724324559340,6.9444,144.0,143.94,20.0]
[1724324559951,6.9444,144.0,143.96,20.0]
[1724324560560,7.20616246,144.01,143.96,20.0]
[1724324561358,14.15026246,144.01,143.96,20.0]
[1724324561536,7.20616246,144.01,143.96,20.0]
[1724324562050,7.20616246,144.01,143.98,20.0]
[1724324562267,16.2674,144.03,143.98,20.0]
[1724324562477,23.47313593,144.03,143.98,20.0]
[1724324562772,30.41613593,144.03,143.98,20.0]
[1724324562968,23.47313593,144.03,143.98,20.0]
[1724324565064,6.9435,144.02,143.96,20.0]
[1724324565295,6.9443,144.01,143.96,20.0]
[1724324565786,6.9435,144.02,143.96,20.0]
[1724324567473,56.36623593,144.03,143.98,20.0]
[1724324568044,6.9435,144.02,143.98,20.0]
[1724324569775,56.36613593,144.03,143.98,20.0]
[1724324571476,6.9435,144.02,143.98,20.0]
[1724324571771,6.9441,144.01,143.96,20.0]
[1724324572774,14.15095027,144.02,143.98,20.0]
[1724324573395,14.15095027,144.02,143.96,20.0]
[1724324574078,6.944,144.01,143.96,20.0]
[1724324574452,6.9444,144.0,143.96,20.0]
[1724324574761,6.9444,144.0,143.94,20.0]
[1724324576957,6.945,143.99,143.94,20.0]
[1724324579961,15.1969,143.98,143.94,20.0]
[1724324584094,7.20362896,143.99,143.94,20.0]
[1724324584311,6.9445,144.0,143.94,20.0]
[1724324584596,24.52662963,144.01,143.96,20.0]
[1724324585163,14.14662963,144.01,143.96,20.0]
[1724324585895,7.20262963,144.01,143.96,20.0]
[1724324586292,7.20262963,144.01,143.98,20.0]
[1724324586597,15.8701,144.02,143.98,20.0]
[1724324589022,24.52585162,144.04,143.98,20.0]
[1724324590500,6.943,144.03,143.98,20.0]
[1724324590668,10.38,144.02,143.96,20.0]
[1724324591695,17.3235,144.02,143.96,20.0]
[1724324593695,10.38,144.02,143.98,20.0]
[1724324595599,6.9431,144.03,143.98,20.0]
[1724324596176,24.52585162,144.04,143.98,20.0]
[1724324596899,24.52585162,144.04,144.0,20.0]
[1724324596900,17.58325162,144.04,144.0,20.0]
[1724324597504,7.20325162,144.04,144.0,20.0]
[1724324597815,7.20325162,144.04,144.02,20.0]
[1724324598984,7.20325162,144.04,144.0,20.0]
[1724324600312,7.20325162,144.04,144.02,20.0]
[1724324602893,7.20325162,144.04,144.0,20.0]
[1724324603311,7.20325162,144.04,144.02,20.0]
[1724324603617,7.20325162,144.04,144.0,20.0]
[1724324604206,7.20325162,144.04,144.02,20.0]
[1724324606095,7.20325162,144.04,144.0,20.0]
[1724324606281,7.20325162,144.04,144.02,20.0]
[1724324606602,7.20325162,144.04,144.0,20.0]
[1724324607189,10.38,144.03,144.0,20.0]
[1724324607416,10.38,144.03,143.98,20.0]
[1724324608481,10.38,144.01,143.96,20.0]
[1724324610894,17.3243,144.01,143.96,20.0]
[1724324612300,10.38,143.99,143.96,20.0]
[1724324613528,10.38,143.99,143.91,16.9031]
[1724324613529,10.38,143.99,143.94,20.0]
[1724324615431,23.5274,144.0,143.94,20.0]
[1724324615727,33.9074,144.0,143.94,20.0]
[1724324616021,26.963,144.0,143.96,20.0]
[1724324617125,33.9074,144.0,143.96,20.0]
[1724324617725,26.963,144.0,143.96,20.0]
[1724324617927,33.9074,144.0,143.96,20.0]
[1724324618530,10.38,143.98,143.94,20.0]
[1724324620835,7.21828736,143.99,143.96,20.0]
[1724324622415,7.21828736,143.99,143.97,20.0]
[1724324623711,10.38,144.03,143.99,20.0]
[1724324623911,25.7337,144.03,143.99,20.0]
[1724324624616,15.3537,144.03,143.99,20.0]
[1724324625105,15.3537,144.03,144.01,20.0]
[1724324627020,7.22081115,144.04,144.01,20.0]
[1724324627523,7.22081115,144.04,143.99,20.0]
[1724324627818,17.60081115,144.04,143.99,20.0]
[1724324629443,24.54341115,144.04,143.99,20.0]
[1724324630841,6.943,144.03,143.97,20.0]
[1724324631835,10.38,144.02,143.97,20.0]
[1724324632234,17.3236,144.02,143.97,20.0]
[1724324632930,10.38,144.0,143.95,20.0]
[1724324633947,17.3244,144.0,143.95,20.0]
[1724324634251,17.60074293,144.0,143.95,20.0]
[1724324634617,10.38,144.0,143.95,20.0]
[1724324635033,23.66468514,144.01,143.98,20.0]
[1724324635415,16.4445,144.01,143.98,20.0]
[1724324635849,16.4445,144.01,143.96,20.0]
[1724324636928,16.4445,144.01,143.98,20.0]
[1724324640636,16.4445,144.01,143.96,20.0]
[1724324641540,23.3886,144.01,143.97,4.03125138]
[1724324641860,23.3886,144.01,143.96,20.0]
[1724324642039,10.38,144.0,143.97,4.03165441]
[1724324642228,10.38,144.0,143.96,20.0]
[1724324642442,17.3246,144.0,143.94,20.0]
[1724324642749,10.38,144.0,143.96,20.0]
[1724324642954,10.38,144.0,143.97,4.03237175]
[1724324643148,10.38,144.0,143.96,20.0]
[1724324643345,10.38,144.0,143.97,4.03117102]
[1724324643541,10.38,144.0,143.96,20.0]
[1724324646031,30.60949998,144.01,143.96,20.0]
[1724324646854,6.9445,144.0,143.96,20.0]
[1724324647163,17.3245,144.0,143.96,20.0]
[1724324647845,17.3245,144.0,143.94,20.0]
[1724324648264,6.9449,143.99,143.94,20.0]
[1724324649361,17.3246,144.0,143.94,20.0]
[1724324652382,6.9449,143.99,143.94,20.0]
[1724324653186,6.9455,143.98,143.94,20.0]
[1724324653374,17.3255,143.98,143.92,20.0]
[1724324654282,15.1659,143.97,143.92,20.0]
[1724324656286,22.38037787,143.97,143.92,20.0]
[1724324656596,29.32637787,143.97,143.92,20.0]
[1724324657794,10.38,143.94,143.89,20.8475192]
[1724324658163,17.3273,143.94,143.89,20.8475192]
[1724324658590,15.8776,143.93,143.89,20.8475192]
[1724324658904,10.38,143.92,143.89,0.8475192]
[1724324659276,17.3284,143.92,143.89,0.8475192]
[1724324659477,15.8776,143.93,143.89,0.8475192]
[1724324659668,15.8776,143.93,143.89,20.8475192]
[1724324660692,15.8776,143.93,143.91,20.0]
[1724324662301,15.4116,143.96,143.91,20.0]
[1724324663467,22.3581,143.96,143.91,20.0]
[1724324663671,15.4116,143.96,143.91,20.0]
[1724324664483,15.4116,143.96,143.93,20.0]
[1724324667593,15.4116,143.96,143.91,20.0]
[1724324668818,15.4116,143.96,143.93,20.0]
[1724324669489,15.4116,143.96,143.95,20.0]
[1724324670332,7.21896737,143.98,143.95,20.0]
[1724324670619,23.4981,144.0,143.95,20.0]
[1724324670827,30.71885482,144.0,143.95,20.0]
[1724324671201,6.9449,143.99,143.95,20.0]
[1724324671996,30.71895482,144.0,143.95,20.0]
[1724324672224,6.9449,143.99,143.95,20.0]
[1724324672418,17.3249,143.99,143.93,20.0]
[1724324674204,6.9454,143.98,143.93,20.0]
[1724324676927,6.945,143.99,143.93,20.0]
[1724324677603,30.71905482,144.0,143.95,20.0]
[1724324678706,23.77445482,144.0,143.95,20.0]
[1724324679030,23.77445482,144.0,143.97,20.0]
[1724324684128,23.77445482,144.0,143.95,20.0]
[1724324684504,6.9449,143.99,143.95,20.0]
[1724324692424,6.9455,143.98,143.95,20.0]
[1724324696429,17.3355,143.98,143.95,20.0]
[1724324696843,24.55973437,143.99,143.95,20.0]
[1724324698038,17.61463437,143.99,143.95,20.0]
[1724324698223,7.22463437,143.99,143.95,20.0]
[1724324698429,7.22463437,143.99,143.97,20.0]
[1724324699539,7.22463437,143.99,143.95,20.0]
[1724324700521,17.61463437,143.99,143.95,20.0]
[1724324700722,24.55953437,143.99,143.95,20.0]
[1724324701549,17.61463437,143.99,143.95,20.0]
[1724324702358,24.55963437,143.99,143.95,20.0]
[1724324702656,24.55953437,143.99,143.95,20.0]
[1724324702865,17.61463437,143.99,143.95,20.0]
[1724324704424,7.22463437,143.99,143.95,20.0]
[1724324705080,7.22463437,143.99,143.97,20.0]
[1724324706662,7.22463437,143.99,143.95,20.0]
[1724324711368,14.16953437,143.99,143.95,20.0]
[1724324713152,6.9454,143.98,143.93,20.0]
[1724324713375,6.9459,143.97,143.93,20.0]
[1724324713534,6.9459,143.97,143.89,7.0703192]
[1724324713535,32.9172,143.95,143.9,20.0]
[1724324714179,6.9492,143.91,143.89,0.8475192]
[1724324714465,25.97,143.93,143.89,0.8475192]
[1724324714967,15.9944,143.92,143.89,0.8475192]
[1724324717155,6.9488,143.91,143.89,0.8475192]
[1724324717968,32.9188,143.91,143.89,0.8475192]
[1724324719146,6.9492,143.9,143.89,0.8475192]
[1724324719349,25.97,143.91,143.84,20.0]
[1724324719350,6.9497,143.89,143.84,20.0]
[1724324719580,32.9197,143.89,143.84,20.0]
[1724324720272,25.97,143.89,143.84,20.0]
[1724324720474,6.9503,143.88,143.84,20.0]
[1724324721138,6.9509,143.87,143.84,20.0]
[1724324721344,6.9509,143.87,143.82,20.0]
[1724324721871,6.9502,143.88,143.82,20.0]
[1724324722257,15.844,143.87,143.82,20.0]
[1724324723146,48.7647,143.87,143.82,20.0]
[1724324723348,32.9217,143.85,143.78,20.0]
[1724324723559,22.0044,143.87,143.8,20.0]
[1724324723560,25.97,143.86,143.8,20.0]
[1724324723770,32.9216,143.86,143.8,20.0]
[1724324723988,6.9517,143.85,143.8,20.0]
[1724324724160,14.16675831,143.85,143.8,20.0]
[1724324725092,6.9523,143.84,143.78,20.0]
[1724324725256,6.9527,143.83,143.78,20.0]
[1724324726687,6.9527,143.83,143.76,20.0]
[1724324726908,42.3352,143.82,143.76,20.0]
[1724324727059,6.9539,143.81,143.76,20.0]
[1724324727474,6.9541,143.8,143.76,20.0]
[1724324727894,32.9241,143.8,143.75,0.8475192]
[1724324728083,25.97,143.8,143.75,0.8475192]
[1724324728486,6.9546,143.79,143.75,0.8475192]
[1724324728997,25.97,143.8,143.75,0.8475192]
[1724324729179,6.9546,143.79,143.75,0.8475192]
[1724324730109,6.9551,143.78,143.75,0.8475192]
[1724324730959,6.9547,143.79,143.75,0.8475192]
[1724324731587,6.9542,143.8,143.75,0.8475192]
[1724324731793,12.9901,143.81,143.76,20.0]
[1724324731990,23.3183,143.82,143.76,20.0]
[1724324733082,16.3652,143.82,143.76,20.0]
[1724324733400,23.3183,143.82,143.76,20.0]
[1724324733604,23.3183,143.82,143.77,1.39099106]
[1724324733783,23.3183,143.82,143.76,21.39096474]
[1724324734103,16.3652,143.82,143.78,20.0]
[1724324734316,16.3652,143.82,143.8,20.0]
[1724324734494,7.21648353,143.83,143.8,20.0]
[1724324735302,10.15823991,143.88,143.82,20.0]
[1724324738104,14.16922679,143.87,143.82,20.0]
[1724324738486,6.9513,143.86,143.82,20.0]
[1724324740011,33.18852679,143.87,143.8,20.0]
[1724324740388,6.9521,143.85,143.8,20.0]
[1724324740590,6.9523,143.84,143.78,20.0]
[1724324740792,33.18852679,143.87,143.78,20.0]
[1724324740793,6.9528,143.83,143.78,20.0]
[1724324741098,32.922,143.85,143.78,20.0]
[1724324741299,25.97,143.85,143.78,20.0]
[1724324741812,6.9522,143.84,143.8,20.0]
[1724324742198,6.9522,143.84,143.78,20.0]
[1724324742398,16.4684,143.83,143.78,20.0]
[1724324742609,23.4212,143.83,143.78,20.0]
[1724324743615,16.4684,143.83,143.8,20.0]
[1724324743998,16.4684,143.83,143.78,20.0]
[1724324745518,16.4684,143.83,143.81,20.0]
[1724324749399,16.4684,143.83,143.79,20.0]
[1724324749621,23.4211,143.83,143.79,20.0]
[1724324750203,16.4684,143.83,143.79,20.0]
[1724324751104,23.4211,143.83,143.79,20.0]
[1724324753227,16.4684,143.83,143.79,20.0]
[1724324754140,33.8313,143.83,143.79,20.0]
[1724324757024,7.21531825,143.82,143.79,20.0]
[1724324757420,16.4684,143.83,143.79,20.0]
[1724324757804,16.4684,143.83,143.81,20.0]
[1724324758002,7.21567425,143.85,143.81,20.0]
[1724324758205,7.21567425,143.85,143.75,24.5917192]
[1724324758206,10.41,143.84,143.79,20.0]
[1724324758400,17.3622,143.84,143.79,20.0]
[1724324758613,6.9522,143.84,143.79,20.0]
[1724324761307,14.16747425,143.85,143.79,20.0]
[1724324762012,7.21567425,143.85,143.81,20.0]
[1724324762319,10.41,143.82,143.76,20.0]
[1724324762528,17.3631,143.82,143.76,20.0]
[1724324762710,6.9536,143.81,143.76,20.0]
[1724324763219,17.3641,143.8,143.76,20.0]
[1724324763421,17.3641,143.8,143.75,0.8475192]
[1724324763936,10.41,143.78,143.75,0.8475192]
[1724324764233,17.366,143.76,143.75,0.8475192]
[1724324764424,10.41,143.76,143.75,0.8475192]
[1724324764610,65.0,143.81,143.75,0.8475192]
[1724324764611,6.9555,143.78,143.75,0.8475192]
[1724324764818,17.3655,143.78,143.75,0.8475192]
[1724324766340,6.9555,143.77,143.75,0.8475192]
[1724324766918,17.365,143.78,143.75,0.8475192]
[1724324767114,10.41,143.78,143.75,0.8475192]
[1724324767639,10.41,143.8,143.75,0.8475192]
[1724324768038,17.63073,143.8,143.75,0.8475192]
[1724324768552,24.58523,143.8,143.75,0.8475192]
[1724324769121,24.58523,143.8,143.75,4.89909516]
[1724324770155,6.9546,143.79,143.75,4.89909516]
[1724324770363,6.9546,143.79,143.75,0.8475192]
[1724324770561,17.63073,143.8,143.75,4.90011453]
[1724324770562,7.22073,143.8,143.75,4.90011453]
[1724324770727,7.22073,143.8,143.75,0.8475192]
[1724324771120,7.22073,143.8,143.76,20.0]
[1724324771324,21.6582,143.82,143.76,20.0]
[1724324772136,6.9536,143.81,143.76,20.0]
[1724324772956,28.6113,143.82,143.76,20.0]
[1724324773156,6.9537,143.81,143.76,20.0]
[1724324773655,17.3637,143.81,143.76,20.0]
[1724324780753,6.9537,143.81,143.76,20.0]
[1724324782653,7.22214223,143.83,143.78,20.0]
[1724324782955,7.22214223,143.83,143.8,20.0]
[1724324789939,7.2185648,143.92,143.86,20.0]
[1724324790567,7.2185648,143.92,143.87,1.39004834]
[1724324790945,7.2185648,143.92,143.88,20.0]
[1724324792057,7.2185648,143.92,143.9,20.0]
[1724324792259,17.3572,143.95,143.9,20.0]
[1724324792666,24.57355303,143.95,143.9,20.0]
[1724324793180,17.62635303,143.95,143.9,20.0]
[1724324793851,7.21635303,143.95,143.9,20.0]
[1724324795081,7.21635303,143.95,143.91,1.38970346]
[1724324795286,7.21635303,143.95,143.9,21.38962676]
[1724324795470,33.7752,143.97,143.9,21.38962676]
[1724324795671,40.98978126,143.97,143.9,21.38962676]
[1724324796175,40.98978126,143.97,143.92,20.0]
[1724324796946,34.04388126,143.97,143.92,20.0]
[1724324797276,40.98978126,143.97,143.92,20.0]
[1724324798680,7.21458126,143.97,143.92,20.0]
[1724324798974,7.21458126,143.97,143.94,20.0]
[1724324800360,17.62458126,143.97,143.91,6.2166]
[1724324800681,17.62458126,143.97,143.88,20.0]
[1724324800682,6.9473,143.94,143.88,20.0]
[1724324801872,17.357,143.95,143.9,20.0]
[1724324803384,6.9463,143.96,143.9,20.0]
[1724324803675,6.9468,143.95,143.9,20.0]
[1724324804479,17.357,143.95,143.9,20.0]
[1724324804865,10.41,143.91,143.87,6.2166]
[1724324805084,15.3821,143.94,143.87,6.2166]
[1724324805085,17.3579,143.93,143.88,20.0]
[1724324805970,10.41,143.93,143.88,20.0]
[1724324806359,17.3578,143.93,143.88,20.0]
[1724324807158,6.9478,143.93,143.88,20.0]
[1724324808165,6.9484,143.92,143.88,20.0]
[1724324808485,6.9489,143.91,143.86,20.0]
[1724324808663,6.9493,143.9,143.86,20.0]
[1724324808863,17.3588,143.91,143.86,20.0]
[1724324810364,6.9488,143.91,143.86,20.0]
[1724324813364,6.9483,143.92,143.86,20.0]
[1724324813773,6.9483,143.92,143.88,20.0]
[1724324814589,22.59008024,143.94,143.88,30.41]
[1724324814590,29.53748024,143.94,143.88,30.41]
[1724324814780,29.53748024,143.94,143.9,20.0]
[1724324815087,29.53748024,143.94,143.88,30.41]
[1724324816694,29.53748024,143.94,143.9,20.0]
[1724324816880,29.53748024,143.94,143.88,30.41]
[1724324817066,6.9478,143.93,143.88,30.41]
[1724324817265,6.9478,143.93,143.88,20.0]
[1724324818593,6.949,143.91,143.86,20.0]
[1724324818762,6.9486,143.92,143.86,20.0]
[1724324819969,6.9488,143.91,143.86,20.0]
[1724324820208,17.60761509,143.93,143.86,20.0]
[1724324820693,6.9488,143.91,143.86,20.0]
[1724324823385,6.9496,143.9,143.86,20.0]
[1724324824676,6.9498,143.89,143.84,20.0]
[1724324825293,6.9503,143.88,143.83,6.0197]
[1724324825795,6.9503,143.88,143.84,20.0]
[1724324826010,6.9507,143.87,143.82,20.0]
[1724324826296,6.9504,143.88,143.82,20.0]
[1724324828880,14.14504282,143.88,143.82,20.0]
[1724324829289,14.14504282,143.88,143.84,20.0]
[1724324829479,7.19464282,143.88,143.84,20.0]
[1724324830186,7.19464282,143.88,143.86,20.0]
[1724324830497,26.5665,143.92,143.86,20.0]
[1724324830806,33.75866533,143.92,143.86,20.0]
[1724324831283,6.9491,143.91,143.86,20.0]
[1724324832197,6.9491,143.91,143.84,20.0]
[1724324832395,6.9493,143.9,143.84,24.04174719]
[1724324832606,17.3593,143.9,143.84,20.0]
[1724324833285,6.9497,143.89,143.84,20.0]
[1724324833879,6.9502,143.88,143.82,20.0]
[1724324834082,6.9502,143.88,143.82,24.04301999]
[1724324834480,10.41,143.9,143.82,24.04301999]
[1724324834481,6.9498,143.89,143.82,24.04301999]
[1724324834681,6.9504,143.88,143.82,24.04301999]
[1724324835184,10.41,143.9,143.83,4.04301999]
[1724324835510,6.9497,143.89,143.84,20.0]
[1724324836006,17.3593,143.9,143.84,20.0]
[1724324836882,6.9498,143.89,143.84,20.0]
[1724324837082,6.9503,143.88,143.82,20.0]
[1724324839486,6.9508,143.87,143.82,20.0]
[1724324841205,22.1944,143.87,143.82,20.0]
[1724324842789,17.3614,143.86,143.8,20.0]
[1724324843215,17.3614,143.86,143.8,21.39062384]
[1724324843393,17.3614,143.86,143.8,20.0]
[1724324843706,6.9517,143.85,143.8,20.0]
[1724324844528,17.3613,143.86,143.8,20.0]
[1724324845524,6.9517,143.85,143.8,20.0]
[1724324847926,6.9513,143.86,143.82,20.0]
[1724324850592,22.1943,143.87,143.82,20.0]
[1724324850993,6.9512,143.86,143.82,20.0]
[1724324851202,6.9512,143.86,143.8,30.41]
[1724324851407,6.9512,143.86,143.82,20.0]
[1724324851698,29.39169615,143.87,143.82,20.0]
[1724324856510,22.44089615,143.87,143.84,20.0]
[1724324858028,7.19729615,143.87,143.84,20.0]
[1724324858428,6.9499,143.89,143.84,20.0]
[1724324858741,14.14705537,143.89,143.84,20.0]
[1724324860438,6.9503,143.88,143.84,20.0]
[1724324862235,14.14695537,143.89,143.84,20.0]
[1724324863340,6.9504,143.88,143.84,20.0]
[1724324865323,17.60715537,143.89,143.82,20.0]
[1724324865324,6.9507,143.87,143.82,20.0]
[1724324865634,6.9507,143.87,143.83,1.39047694]
[1724324866342,6.9504,143.88,143.83,1.39047694]
[1724324866521,17.60715537,143.89,143.84,20.0]
[1724324866522,24.55725537,143.89,143.84,20.0]
[1724324867045,6.9504,143.88,143.84,20.0]
[1724324868933,7.19584621,143.87,143.84,20.0]